[Event "Cracovia Festival-A 2023"]
[Site "Krakow"]
[Date "2024.01.04"]
[Round "9.5"]
[White "Polak, Tomas"]
[Black "Podolskyi, Mykhailo"]
[Result "1-0"]
[ECO "A06"]
[WhiteElo "2517"]
[BlackElo "2177"]
[Annotator "TA"]
[PlyCount "83"]
[EventDate "2023.12.24"]
[EventType "swiss"]
[EventCountry "POL"]
[SourceTitle "playchess.com"]
[Source "ChessBase"]
[SourceQuality "1"]
[TimeControl "40/5400+30:1800+30"]

{[%evp 13,83,2,17,-8,-8,-7,-10,-13,-12,-6,25,43,40,31,13,1,20,-164,-20,-13,-30,-63,-55,-55,-38,-67,-60,-65,-59,-60,-59,-92,-78,-100,-95,-91,-100,-99,-64,-57,-64,-117,-81,-93,-77,-114,-84,-107,-109,-115,-65,-54,14,16,18,12,22,12,211,57,45,24,477,435,433,435,462,475,29986,-554,5131,2239]} 1. Nf3 {[%emt 0:01:34]} d5 {[%emt 0:00:13]} 2. c4 {[%emt 0:00:07]} c6 {[%emt 0:00:12]} 3. e3 {[%emt 0:00:08]} Nf6 {[%emt 0:00:39]} 4. Nc3 {[%emt 0:00:09]} e6 {[%emt 0:01:16]} 5. b3 {[%emt 0:00:10]} Nbd7 {[%emt 0:00:22]} 6. Bb2 {[%emt 0:00:09]} Bd6 {[%emt 0:01:31]} 7. Qc2 {[%emt 0:00:10]} O-O {[%emt 0:01:18]} 8. Rg1 {[%emt 0:00:16] A11: English Opening: 1...c6.} e5 {[%emt 0:28:44]} 9. cxd5 {[%emt 0:00:30]} Nxd5 {[%emt 0:00:21]} 10. Ne4 {[%emt 0:00:14] The position is equal.} Bc7 {[%emt 0:02:12] ...f5 would be deadly.} 11. g4 {[%emt 0:00:10][%cal Bg2g4,Bg4g5][%mdl 32]} Re8 {[%emt 0:04:21]} 12. g5 {[%emt 0:04:38] Dodges N7f6} (12. Neg5 N7f6 13. e4 Nb6 $17) 12... Nf8 {[%emt 0:03:30][%cal Bd7f8,Bf8e6,Be6g5][%mdl 32]} 13. h4 {[%emt 0:00:20]} (13. Rc1 $5) 13... Bf5 {[%emt 0:09:55]} 14. h5 {[%emt 0:00:38]} Ne6 $1 {[%emt 0:06:53][%cal Oe6d4] [#]} 15. Nh4 $146 {[%emt 0:09:58]} (15. a3 $11) ({Predecessor:} 15. Rc1 Nd4 16. Bxd4 exd4 17. Nf6+ Nxf6 18. Qxf5 Ne4 19. g6 fxg6 20. hxg6 dxe3 21. fxe3 h6 22. Qf7+ Kh8 23. Rh1 Bg3+ 24. Ke2 {1-0 Docx,S (2488)-Gagunashvili,M (2556) EU-chT (Men) 19th 2013 (1.14)}) 15... Bxe4 {[%emt 0:06:51]} (15... Nxg5 $19 16. f3 Nb4) 16. Qxe4 $11 {[%emt 0:00:14]} Nxg5 {[%emt 0:00:26]} 17. Qg2 {[%emt 0:21:40]} h6 {[%emt 0:01:12]} 18. Nf3 {[%emt 0:00:15][%cal Rf3g5]} Nb4 {[%emt 0:12:19] aiming for ...Nc2+. A dynamic duo of knights.} (18... f6 {simplifies} 19. Nxg5 fxg5 20. Qe4 Qd6) 19. Kd1 {[%emt 0:07:20][%cal Rf3g5] Dodges Nc2} f6 {[%emt 0:03:26]} 20. Nxg5 {[%emt 0:11:50]} fxg5 {[%emt 0:00:02]} ({But not} 20... hxg5 21. Qe4 Qd6 22. Bc4+ Kh8 23. Qg6 $16) 21. Qe4 {[%emt 0:00:27]} Nd5 {[%emt 0:00:17]} (21... a5 {with more complications.} 22. Bc4+ Nd5 23. Qg6 Qe7) 22. Kc2 {[%emt 0:00:27]} Qe7 {[%emt 0:03:40]} 23. Bc4 {[%emt 0:03:14]} Rad8 {[%emt 0:00:44]} 24. Rad1 {[%emt 0:00:12]} Kh8 {[%emt 0:04:14]} 25. Kb1 {[%emt 0:04:42]} Rf8 {[%emt 0:01:23]} 26. f3 {[%emt 0:01:38]} Nf6 {[%emt 0:01:26]} 27. Qc2 {[%emt 0:06:16]} ({White should try} 27. Qg6 $15) 27... Qe8 {[%emt 0:01:13]} 28. Rh1 {[%emt 0:04:08]} a5 {[%emt 0:01:30]} 29. Bd3 {[%emt 0:02:52]} Nd5 {[%emt 0:01:03] Strongly threatening ...Nb4.} 30. Bg6 {[%emt 0:00:43]} Qd7 {[%emt 0:00:49]} 31. Qe4 {[%emt 0:04:26]} Ne7 {[%emt 0:02:25]} (31... a4 $17 32. bxa4 Ra8) 32. d4 $15 {[%emt 0:00:36]} Nxg6 {[%emt 0:01:15]} (32... Qd6 $15) 33. hxg6 $11 {[%emt 0:00:09]} Qd5 {[%emt 0:00:11]} 34. Qxd5 {[%emt 0:08:36]} cxd5 {[%emt 0:00:52]} 35. dxe5 {[%emt 0:00:06] Hoping for e6.} Rxf3 $2 {[%emt 0:00:38] [#]} (35... Kg8 $1 $11) 36. e6 $2 {[%emt 0:00:35]} ({White must play} 36. e4 $1 $18 {[%cal Re4d5]}) 36... Kg8 $1 $14 {[%emt 0:00:12]} (36... Rxe3 $2 37. Rxh6+ Kg8 38. Rh7 $18) 37. e4 {[%emt 0:00:09]} ({Much weaker is} 37. e7 Re8 $11) 37... dxe4 {[%emt 0:00:46][%mdl 8192]} (37... d4 $1 $11 {and Black is okay.}) 38. e7 $18 {[%emt 0:08:20]} Re8 {[%emt 0:00:31]} 39. Rd7 {[%emt 0:00:08]} Bb6 {[%emt 0:00:35] [#]} 40. Rhd1 {[%emt 0:00:00] Prevents Rd3. And now Ba3 would win.} Rd3 {[%emt 0:00:00]} (40... e3 $18) 41. Rd2 $4 {[%emt 0:05:02][%mdl 8192]} (41. R1xd3 {is the narrow road to win.} exd3 42. Bd4 Rxe7 43. Rxe7 Kf8 44. Rf7+ (44. Bxb6 Kxe7 45. Bd4 Ke6 $16) 44... Ke8 45. Bxb6 h5 46. Rxg7) 41... Rxd7 $4 {[%emt 0:00:31][%mdl 8192]} (41... Rxd2 $19 42. Rxd2 Rxe7) 42. Rxd7 {[%emt 0:00:23] Weighted Error Value: White=0.36/Black=0.49} 1-0

[Event "Cracovia Festival-A 2023"]
[Site "Krakow"]
[Date "2024.01.04"]
[Round "9.6"]
[White "Baumegger, Siegfried"]
[Black "Soffer, Ram"]
[Result "1/2-1/2"]
[ECO "A04"]
[WhiteElo "2388"]
[BlackElo "2444"]
[Annotator "RC"]
[PlyCount "124"]
[EventDate "2023.12.24"]
[EventType "swiss"]
[EventCountry "POL"]
[SourceTitle "playchess.com"]
[Source "ChessBase"]
[SourceQuality "1"]
[TimeControl "40/5400+30:1800+30"]

1. Nf3 {[%emt 0:00:06]} c5 {[%emt 0:00:10]} 2. b3 {[%emt 0:01:03]} d5 {[%emt 0:00:53]} 3. e3 {[%emt 0:00:12]} Nf6 {[%emt 0:00:53]} 4. Bb2 {[%emt 0:00:17]} g6 {[%emt 0:00:20]} 5. c4 {[%emt 0:04:41]} dxc4 {[%emt 0:05:20]} 6. Bxc4 {[%emt 0:02:54]} Bg7 {[%emt 0:00:24]} 7. O-O {[%emt 0:00:31]} O-O {[%emt 0:00:06]} 8. d4 {[%emt 0:02:11]} cxd4 {[%emt 0:01:55]} 9. Nxd4 {[%emt 0:01:35]} Bd7 {[%emt 0:00:52]} 10. Qe2 {[%emt 0:01:56]} Nc6 {[%emt 0:00:29]} 11. Rd1 {[%emt 0:02:39]} Nxd4 {[%emt 0:07:22]} 12. Bxd4 {[%emt 0:02:08]} Qc7 {[%emt 0:01:08]} 13. Rc1 {[%emt 0:16:53]} Bc6 {[%emt 0:05:38]} 14. Nd2 {[%emt 0:04:22]} Rac8 {[%emt 0:05:56]} 15. a4 {[%emt 0:11:38]} Qb8 {[%emt 0:06:54]} 16. b4 {[%emt 0:01:37]} b6 {[%emt 0:03:10]} 17. Nb3 {[%emt 0:08:49]} e5 {[%emt 0:03:32]} 18. Bb2 {[%emt 0:00:55]} Ne4 {[%emt 0:04:17]} 19. b5 {[%emt 0:06:14]} Bb7 {[%emt 0:00:43]} 20. Rd1 {[%emt 0:06:33]} Nd6 {[%emt 0:07:40]} 21. Bd5 {[%emt 0:01:42]} Bxd5 {[%emt 0:01:08]} 22. Rxd5 {[%emt 0:00:05]} Nc4 {[%emt 0:00:25]} 23. Rad1 {[%emt 0:01:23]} Nxb2 {[%emt 0:02:32]} 24. Qxb2 {[%emt 0:00:05]} Rfd8 {[%emt 0:01:51]} 25. Rxd8+ {[%emt 0:08:23]} Rxd8 {[%emt 0:00:02]} 26. Rxd8+ {[%emt 0:00:31]} Qxd8 {[%emt 0:00:02]} 27. Qc2 {[%emt 0:00:59]} e4 {[%emt 0:02:17]} 28. g3 {[%emt 0:06:31]} h5 {[%emt 0:02:16]} 29. Kg2 {[%emt 0:01:12]} f5 {[%emt 0:04:45]} 30. h4 {[%emt 0:01:55]} Kh7 {[%emt 0:06:12]} 31. Nc1 {[%emt 0:00:14]} Be5 {[%emt 0:01:33]} 32. Ne2 {[%emt 0:00:24]} Qd3 {[%emt 0:01:04]} 33. Qa2 {[%emt 0:00:09]} Kg7 {[%emt 0:01:30]} 34. Ng1 {[%emt 0:00:14]} Qd7 {[%emt 0:02:59]} 35. Nh3 {[%emt 0:01:26]} Qf7 {[%emt 0:00:08]} 36. Qc2 {[%emt 0:00:26]} Qc7 {[%emt 0:00:55]} 37. Qd2 {[%emt 0:00:52]} Bc3 {[%emt 0:06:48]} 38. Qd5 {[%emt 0:01:09]} Qf7 {[%emt 0:06:23]} 39. Qc6 {[%emt 0:00:20]} Be5 {[%emt 0:00:08]} 40. Ng5 {[%emt 0:00:00]} Qe7 {[%emt 0:00:00]} 41. Qd5 {[%emt 0:02:22]} Bf6 {[%emt 0:00:24]} 42. Ne6+ {[%emt 0:04:48]} Kh7 {[%emt 0:00:04]} 43. Qc6 {[%emt 0:01:24]} Be5 {[%emt 0:00:35]} 44. Qc8 {[%emt 0:00:50]} Bf6 {[%emt 0:01:50]} 45. Nf4 {[%emt 0:07:08]} Qf7 {[%emt 0:00:55]} 46. Qc6 {[%emt 0:01:27]} Be5 {[%emt 0:01:05]} 47. Ne6 {[%emt 0:03:53]} Qe7 {[%emt 0:00:31]} 48. Qd5 {[%emt 0:00:57]} Bf6 {[%emt 0:00:19]} 49. Qc4 {[%emt 0:01:13]} Be5 {[%emt 0:01:09]} 50. Kg1 {[%emt 0:01:28]} Kh6 {[%emt 0:01:29]} 51. Kf1 {[%emt 0:01:33]} Kh7 {[%emt 0:01:02]} 52. Kg2 {[%emt 0:00:05]} Kh6 {[%emt 0:00:49]} 53. Qc8 {[%emt 0:02:20]} Kh7 {[%emt 0:02:41]} 54. Nd8 {[%emt 0:00:48]} Bg7 {[%emt 0:01:35]} 55. Ne6 {[%emt 0:03:07]} Bf6 {[%emt 0:01:31]} 56. Nf4 {[%emt 0:00:26]} Qf7 {[%emt 0:01:22]} 57. Qa8 {[%emt 0:02:30]} Be5 {[%emt 0:01:18]} 58. Nd5 {[%emt 0:00:33]} Bg7 {[%emt 0:02:20]} 59. Qd8 {[%emt 0:00:08]} Qe6 {[%emt 0:01:40]} 60. Nc7 {[%emt 0:01:37]} Qf7 {[%emt 0:03:44]} 61. Qc8 {[%emt 0:00:24]} Bf6 {[%emt 0:01:18]} 62. Ne6 {[%emt 0:01:01]} Qe7 {[%emt 0:00:34]} 1/2-1/2

[Event "Cracovia Festival-A 2023"]
[Site "Krakow"]
[Date "2024.01.04"]
[Round "9.7"]
[White "Szczurek, Krzysztof"]
[Black "Golubka, Petro"]
[Result "1-0"]
[ECO "B06"]
[WhiteElo "2175"]
[BlackElo "2440"]
[Annotator "RC"]
[PlyCount "45"]
[EventDate "2023.12.24"]
[EventType "swiss"]
[EventCountry "POL"]
[SourceTitle "playchess.com"]
[Source "ChessBase"]
[SourceQuality "1"]
[TimeControl "40/5400+30:1800+30"]

1. e4 {[%emt 0:00:03]} g6 {[%emt 0:22:02]} 2. Nf3 {[%emt 0:01:37]} Bg7 {[%emt 0:00:28]} 3. d4 {[%emt 0:00:30]} c6 {[%emt 0:00:29]} 4. Nc3 {[%emt 0:01:30]} d5 {[%emt 0:00:26]} 5. Be2 {[%emt 0:00:42]} Bg4 {[%emt 0:00:25]} 6. Be3 {[%emt 0:00:30]} e6 {[%emt 0:01:45]} 7. Qd2 {[%emt 0:01:42]} Nd7 {[%emt 0:01:59]} 8. h3 {[%emt 0:02:40]} Bxf3 {[%emt 0:00:20]} 9. Bxf3 {[%emt 0:00:05]} Ne7 {[%emt 0:00:22]} 10. O-O-O {[%emt 0:01:59]} a5 {[%emt 0:00:53]} 11. h4 {[%emt 0:00:40]} h6 {[%emt 0:02:07]} 12. exd5 {[%emt 0:05:55]} exd5 {[%emt 0:02:49]} 13. Rde1 {[%emt 0:01:08]} Nb6 {[%emt 0:00:33]} 14. Be2 {[%emt 0:02:26]} Qd7 {[%emt 0:05:11]} 15. Bf4 {[%emt 0:03:11]} a4 {[%emt 0:02:52]} 16. g4 {[%emt 0:01:49]} a3 {[%emt 0:01:35]} 17. b3 {[%emt 0:00:07]} f6 {[%emt 0:06:46]} 18. Bd3 {[%emt 0:09:53]} Kf7 {[%emt 0:00:08]} 19. h5 {[%emt 0:00:57]} g5 {[%emt 0:00:06]} 20. Rxe7+ {[%emt 0:00:59]} Qxe7 {[%emt 0:00:15]} 21. Re1 {[%emt 0:00:16]} Qb4 {[%emt 0:00:22]} 22. Bg6+ {[%emt 0:00:09]} Kf8 {[%emt 0:00:18]} 23. Qe3 {[%emt 0:00:08]} 1-0

[Event "Cracovia Festival-A 2023"]
[Site "Krakow"]
[Date "2024.01.04"]
[Round "9.8"]
[White "Cukrowski, Filip"]
[Black "Kulkarni Bhakti"]
[Result "1/2-1/2"]
[ECO "E04"]
[WhiteElo "2402"]
[BlackElo "2364"]
[Annotator "RC"]
[PlyCount "86"]
[EventDate "2023.12.24"]
[EventType "swiss"]
[EventCountry "POL"]
[SourceTitle "playchess.com"]
[Source "ChessBase"]
[SourceQuality "1"]
[TimeControl "40/5400+30:1800+30"]

1. d4 {[%emt 0:18:45]} Nf6 {[%emt 0:00:33]} 2. c4 {[%emt 0:00:42]} e6 {[%emt 0:00:12]} 3. Nf3 {[%emt 0:00:38]} d5 {[%emt 0:00:30]} 4. g3 {[%emt 0:01:11]} dxc4 {[%emt 0:00:53]} 5. Bg2 {[%emt 0:06:01]} c6 {[%emt 0:01:04]} 6. O-O {[%emt 0:05:39]} b5 {[%emt 0:00:22]} 7. b3 {[%emt 0:02:11]} cxb3 {[%emt 0:02:32]} 8. Qxb3 {[%emt 0:00:01]} Bb7 {[%emt 0:02:30]} 9. Nc3 {[%emt 0:00:52]} a5 {[%emt 0:06:11]} 10. Rd1 {[%emt 0:20:56]} Be7 {[%emt 0:13:45]} 11. Ne5 {[%emt 0:00:32]} a4 {[%emt 0:04:24]} 12. Qc2 {[%emt 0:03:34]} Qa5 {[%emt 0:09:28]} 13. Bg5 {[%emt 0:08:57]} Nd5 {[%emt 0:09:56]} 14. Ne4 {[%emt 0:07:23]} Nb4 {[%emt 0:10:43]} 15. Bxe7 {[%emt 0:08:54]} Nxc2 {[%emt 0:00:35]} 16. Bc5 {[%emt 0:00:01]} Qc7 {[%emt 0:08:48]} 17. Rac1 {[%emt 0:05:44]} Nxd4 {[%emt 0:16:46]} 18. Rxd4 {[%emt 0:06:04]} Qxe5 {[%emt 0:00:03]} 19. Nd6+ {[%emt 0:00:06]} Qxd6 {[%emt 0:01:24]} 20. Bxd6 {[%emt 0:00:03]} f6 {[%emt 0:00:57]} 21. Rcd1 {[%emt 0:02:06]} e5 {[%emt 0:04:21]} 22. Bxe5 {[%emt 0:00:27]} O-O {[%emt 0:01:05]} 23. Bf4 {[%emt 0:00:34]} Na6 {[%emt 0:01:29]} 24. Rd7 {[%emt 0:00:13]} Nc5 {[%emt 0:00:16]} 25. Rxb7 {[%emt 0:00:17]} Nxb7 {[%emt 0:00:09]} 26. Bxc6 {[%emt 0:00:01]} Rad8 {[%emt 0:01:44]} 27. Rc1 {[%emt 0:01:04]} Nd6 {[%emt 0:00:31]} 28. Rd1 {[%emt 0:00:29]} Nf5 {[%emt 0:01:36]} 29. Rxd8 {[%emt 0:00:52]} Rxd8 {[%emt 0:00:01]} 30. Bxb5 {[%emt 0:00:00]} g5 {[%emt 0:00:33]} 31. Bc7 {[%emt 0:00:31]} Rd1+ {[%emt 0:00:56]} 32. Kg2 {[%emt 0:00:04]} a3 {[%emt 0:00:21]} 33. Bc4+ {[%emt 0:00:50]} Kg7 {[%emt 0:00:04]} 34. Ba5 {[%emt 0:00:26]} Rc1 {[%emt 0:01:39]} 35. Bd3 {[%emt 0:00:40]} Nd4 {[%emt 0:00:01]} 36. Bd2 {[%emt 0:01:08]} Ra1 {[%emt 0:01:26]} 37. Bc3 {[%emt 0:00:12]} Rxa2 {[%emt 0:00:02]} 38. Bxd4 {[%emt 0:00:04]} Rd2 {[%emt 0:00:07]} 39. h4 {[%emt 0:00:44]} gxh4 {[%emt 0:00:36]} 40. g4 {[%emt 0:00:00]} h6 {[%emt 0:00:00]} 41. f4 {[%emt 0:00:20]} Kf7 {[%emt 0:05:07]} 42. Bc4+ {[%emt 0:00:58]} Kg7 {[%emt 0:00:08]} 43. Bd3 {[%emt 0:00:16]} Kf7 {[%emt 0:01:32]} 1/2-1/2

[Event "Cracovia Festival-A 2023"]
[Site "Krakow"]
[Date "2024.01.04"]
[Round "9.9"]
[White "Dzida, Kamil"]
[Black "Kozak, Antoni"]
[Result "1/2-1/2"]
[ECO "B30"]
[WhiteElo "2396"]
[BlackElo "2442"]
[Annotator "RC"]
[PlyCount "97"]
[EventDate "2023.12.24"]
[EventType "swiss"]
[EventCountry "POL"]
[SourceTitle "playchess.com"]
[Source "ChessBase"]
[SourceQuality "1"]
[TimeControl "40/5400+30:1800+30"]

1. e4 {[%emt 0:05:34]} c5 {[%emt 0:01:03]} 2. Nf3 {[%emt 0:00:02]} Nc6 {[%emt 0:00:04]} 3. Bb5 {[%emt 0:00:08]} e6 {[%emt 0:00:04]} 4. O-O {[%emt 0:00:25]} Nge7 {[%emt 0:00:21]} 5. Re1 {[%emt 0:00:07]} Nd4 {[%emt 0:02:43]} 6. Nxd4 {[%emt 0:06:07]} cxd4 {[%emt 0:00:06]} 7. c3 {[%emt 0:00:07]} Nc6 {[%emt 0:00:04]} 8. Na3 {[%emt 0:06:05]} a6 {[%emt 0:19:10]} 9. Bf1 {[%emt 0:05:54]} Bd6 {[%emt 0:00:09]} 10. cxd4 {[%emt 0:14:19]} Nxd4 {[%emt 0:01:51]} 11. d3 {[%emt 0:13:20]} b5 {[%emt 0:10:49]} 12. Be3 {[%emt 0:01:15]} Qf6 13. Nc2 {[%emt 0:00:06]} Nxc2 {[%emt 0:05:07]} 14. Qxc2 {[%emt 0:04:34]} Bb7 {[%emt 0:01:59]} 15. Rec1 {[%emt 0:00:30]} O-O {[%emt 0:00:30]} 16. Qd2 {[%emt 0:01:25]} Qe7 {[%emt 0:01:57]} 17. f4 {[%emt 0:04:37]} f5 {[%emt 0:05:47]} 18. e5 {[%emt 0:00:30]} Bb4 {[%emt 0:00:05]} 19. Qf2 Rfc8 20. a3 {[%emt 0:04:46]} Ba5 {[%emt 0:01:26]} 21. Bb6 {[%emt 0:03:11]} Bxb6 {[%emt 0:00:50]} 22. Qxb6 {[%emt 0:00:05]} Bc6 {[%emt 0:00:26]} 23. Rc2 {[%emt 0:03:26]} g5 {[%emt 0:01:21]} 24. Qe3 {[%emt 0:02:47]} gxf4 {[%emt 0:00:20]} 25. Qxf4 {[%emt 0:00:06]} Kh8 {[%emt 0:00:15]} 26. Be2 {[%emt 0:03:33]} Qg7 {[%emt 0:02:08]} 27. g3 {[%emt 0:01:11]} Rg8 {[%emt 0:00:33]} 28. Rac1 {[%emt 0:01:02]} Raf8 {[%emt 0:00:51]} 29. Rf1 {[%emt 0:03:54]} Qe7 {[%emt 0:04:01]} 30. Qd4 {[%emt 0:02:17]} Rc8 {[%emt 0:02:26]} 31. Rc3 {[%emt 0:05:07]} Qg5 {[%emt 0:00:49]} 32. Qf4 {[%emt 0:01:00]} Qxf4 {[%emt 0:00:48]} 33. Rxf4 {[%emt 0:00:05]} Bd5 {[%emt 0:00:02]} 34. a4 {[%emt 0:02:25]} bxa4 {[%emt 0:03:30]} 35. Rxc8 {[%emt 0:02:16]} Rxc8 {[%emt 0:00:05]} 36. Rxa4 {[%emt 0:00:06]} Rc2 {[%emt 0:02:16]} 37. Kf2 {[%emt 0:01:23]} Bb7 {[%emt 0:00:42]} 38. Rb4 {[%emt 0:01:46]} Bc6 {[%emt 0:00:06]} 39. Ke3 {[%emt 0:02:44]} Bb5 {[%emt 0:00:16]} 40. h4 {[%emt 0:00:00]} Kg7 {[%emt 0:00:00]} 41. Bf3 {[%emt 0:07:10]} Kf7 {[%emt 0:05:03]} 42. g4 {[%emt 0:01:28]} fxg4 {[%emt 0:00:28]} 43. Bxg4 {[%emt 0:01:30]} Ke7 {[%emt 0:01:27]} 44. Be2 {[%emt 0:00:16]} d6 {[%emt 0:01:55]} 45. exd6+ {[%emt 0:01:38]} Kxd6 {[%emt 0:00:50]} 46. Rd4+ {[%emt 0:00:26]} Ke5 {[%emt 0:00:14]} 47. Re4+ {[%emt 0:00:10]} Kd6 {[%emt 0:00:26]} 48. Rd4+ {[%emt 0:00:10]} Ke5 {[%emt 0:00:04]} 49. Re4+ {[%emt 0:00:07]} 1/2-1/2

[Event "Cracovia Festival-A 2023"]
[Site "Krakow"]
[Date "2024.01.04"]
[Round "9.10"]
[White "Kucza, Karol"]
[Black "Schwabeneder, Florian"]
[Result "1/2-1/2"]
[ECO "B07"]
[WhiteElo "2343"]
[BlackElo "2402"]
[Annotator "RC"]
[PlyCount "70"]
[EventDate "2023.12.24"]
[EventType "swiss"]
[EventCountry "POL"]
[SourceTitle "playchess.com"]
[Source "ChessBase"]
[SourceQuality "1"]
[TimeControl "40/5400+30:1800+30"]

1. e4 {[%emt 0:00:04]} d6 {[%emt 0:00:45]} 2. d4 {[%emt 0:00:07]} Nf6 {[%emt 0:00:06]} 3. Nc3 {[%emt 0:00:05]} g6 {[%emt 0:00:08]} 4. Bg5 {[%emt 0:06:54]} Bg7 {[%emt 0:00:11]} 5. Qd2 {[%emt 0:00:08]} h6 {[%emt 0:00:54]} 6. Bh4 {[%emt 0:01:18]} c6 {[%emt 0:07:28]} 7. f4 {[%emt 0:02:40]} b5 {[%emt 0:07:11]} 8. Bd3 {[%emt 0:13:13]} O-O {[%emt 0:02:28]} 9. Nf3 {[%emt 0:00:08]} b4 {[%emt 0:04:39]} 10. Ne2 {[%emt 0:06:37]} a5 {[%emt 0:03:30]} 11. O-O {[%emt 0:00:49]} d5 {[%emt 0:12:41]} 12. e5 {[%emt 0:03:55]} Ne4 {[%emt 0:00:11]} 13. Qe3 {[%emt 0:00:34]} f6 {[%emt 0:05:46]} 14. Be1 {[%emt 0:09:30]} f5 {[%emt 0:22:43]} 15. a3 {[%emt 0:01:07]} bxa3 {[%emt 0:00:21]} 16. Rxa3 {[%emt 0:00:07]} Qb6 {[%emt 0:01:07]} 17. b4 {[%emt 0:06:05]} a4 {[%emt 0:00:18]} 18. c3 {[%emt 0:00:25]} Ra7 {[%emt 0:01:03]} 19. Bh4 {[%emt 0:04:39]} Ba6 {[%emt 0:02:09]} 20. Rfa1 {[%emt 0:00:06]} Bb5 {[%emt 0:01:34]} 21. Bc2 {[%emt 0:00:07]} e6 {[%emt 0:01:05]} 22. Nc1 {[%emt 0:01:00]} Rff7 {[%emt 0:04:26]} 23. Nd3 {[%emt 0:01:35]} Nd7 {[%emt 0:00:31]} 24. Nb2 {[%emt 0:06:37]} g5 {[%emt 0:03:54]} 25. Bf2 {[%emt 0:07:03]} gxf4 {[%emt 0:02:11]} 26. Qe1 {[%emt 0:03:03]} Qb8 {[%emt 0:04:10]} 27. Nd3 {[%emt 0:03:22]} Bxd3 {[%emt 0:03:19]} 28. Bxd3 {[%emt 0:00:24]} Nb6 {[%emt 0:00:07]} 29. Qc1 {[%emt 0:00:33]} Bf8 {[%emt 0:01:09]} 30. Qxf4 {[%emt 0:00:43]} Rg7 {[%emt 0:00:18]} 31. Qc1 {[%emt 0:01:45]} Qe8 {[%emt 0:00:17]} 32. Be3 {[%emt 0:02:23]} Qg6 {[%emt 0:01:00]} 33. R1a2 {[%emt 0:01:43]} Kh7 {[%emt 0:00:10]} 34. Ne1 {[%emt 0:01:54]} Be7 {[%emt 0:02:59]} 35. g3 {[%emt 0:02:37]} Bg5 {[%emt 0:04:09]} 1/2-1/2

[Event "Cracovia Festival-A 2023"]
[Site "Krakow"]
[Date "2024.01.04"]
[Round "9.11"]
[White "Ashwath, R.."]
[Black "Akhvlediani, Irakli"]
[Result "1/2-1/2"]
[ECO "A46"]
[WhiteElo "2284"]
[BlackElo "2359"]
[Annotator "RC"]
[PlyCount "21"]
[EventDate "2023.12.24"]
[EventType "swiss"]
[EventCountry "POL"]
[SourceTitle "playchess.com"]
[Source "ChessBase"]
[SourceQuality "1"]
[TimeControl "40/5400+30:1800+30"]

1. d4 {[%emt 0:01:00]} Nf6 {[%emt 0:02:48]} 2. Nf3 {[%emt 0:00:46]} e6 {[%emt 0:05:20]} 3. Bf4 {[%emt 0:02:08]} d5 {[%emt 0:06:34]} 4. e3 {[%emt 0:02:01]} Bd6 {[%emt 0:01:11]} 5. Bxd6 {[%emt 0:01:33]} Qxd6 {[%emt 0:00:25]} 6. c4 {[%emt 0:00:20]} a6 {[%emt 0:18:14]} 7. Nbd2 {[%emt 0:08:05]} b6 {[%emt 0:21:04]} 8. Bd3 {[%emt 0:12:54]} Bb7 {[%emt 0:00:09]} 9. Qb3 {[%emt 0:03:45]} Ra7 {[%emt 0:07:32]} 10. O-O {[%emt 0:04:39]} Nbd7 {[%emt 0:00:08]} 11. Qc2 {[%emt 0:17:06]} 1/2-1/2

[Event "Cracovia Festival-A 2023"]
[Site "Krakow"]
[Date "2024.01.04"]
[Round "9.12"]
[White "Lewicki, Miroslaw"]
[Black "Klepek, Witold"]
[Result "1-0"]
[ECO "C07"]
[WhiteElo "2321"]
[BlackElo "2252"]
[Annotator "RC"]
[PlyCount "93"]
[EventDate "2023.12.24"]
[EventType "swiss"]
[EventCountry "POL"]
[SourceTitle "playchess.com"]
[Source "ChessBase"]
[SourceQuality "1"]
[TimeControl "40/5400+30:1800+30"]

1. e4 {[%emt 0:00:03]} e6 {[%emt 0:01:30]} 2. d4 {[%emt 0:00:35]} d5 {[%emt 0:00:05]} 3. Nd2 {[%emt 0:00:03]} c5 {[%emt 0:00:06]} 4. exd5 {[%emt 0:00:14]} Qxd5 {[%emt 0:00:04]} 5. Ngf3 {[%emt 0:00:14]} cxd4 {[%emt 0:00:05]} 6. Bc4 {[%emt 0:00:23]} Qd6 {[%emt 0:00:03]} 7. O-O {[%emt 0:00:16]} Nf6 {[%emt 0:00:03]} 8. Nb3 {[%emt 0:00:07]} Nc6 {[%emt 0:00:03]} 9. Nbxd4 {[%emt 0:00:23]} Nxd4 {[%emt 0:00:06]} 10. Nxd4 {[%emt 0:00:14]} a6 {[%emt 0:00:03]} 11. Bg5 {[%emt 0:01:57]} Qc5 {[%emt 0:06:54]} 12. Bxf6 {[%emt 0:00:20]} gxf6 {[%emt 0:03:31]} 13. Bd3 {[%emt 0:02:36]} Bd7 {[%emt 0:00:34]} 14. c3 {[%emt 0:01:08]} O-O-O {[%emt 0:02:20]} 15. Qf3 {[%emt 0:00:51]} f5 {[%emt 0:03:24]} 16. b4 {[%emt 0:03:03]} Qb6 {[%emt 0:05:17]} 17. a4 {[%emt 0:01:11]} Bg7 {[%emt 0:02:14]} 18. a5 {[%emt 0:00:36]} Qd6 {[%emt 0:00:50]} 19. b5 {[%emt 0:01:42]} Bxd4 {[%emt 0:04:04]} 20. cxd4 {[%emt 0:00:07]} axb5 {[%emt 0:01:19]} 21. Rfc1+ {[%emt 0:25:40]} Kb8 {[%emt 0:02:52]} 22. d5 {[%emt 0:00:05]} Qxd5 {[%emt 0:01:52]} 23. Qxd5 {[%emt 0:00:06]} exd5 {[%emt 0:00:03]} 24. Rc5 {[%emt 0:00:10]} d4 {[%emt 0:38:16]} 25. f3 {[%emt 0:12:22]} Rhe8 {[%emt 0:04:33]} 26. Kf2 {[%emt 0:03:27]} f6 {[%emt 0:04:03]} 27. Rd5 {[%emt 0:02:00]} Kc7 {[%emt 0:03:39]} 28. Rc1+ {[%emt 0:01:30]} Bc6 {[%emt 0:00:24]} 29. Rxf5 {[%emt 0:00:09]} Ra8 {[%emt 0:02:57]} 30. Rxb5 {[%emt 0:02:22]} Re5 {[%emt 0:02:43]} 31. Rxe5 {[%emt 0:00:11]} fxe5 {[%emt 0:00:03]} 32. a6 {[%emt 0:00:04]} Kd6 {[%emt 0:03:01]} 33. axb7 {[%emt 0:01:19]} Bxb7 {[%emt 0:00:06]} 34. Bxh7 {[%emt 0:00:06]} Ra2+ {[%emt 0:03:10]} 35. Rc2 {[%emt 0:00:19]} Rxc2+ {[%emt 0:00:29]} 36. Bxc2 {[%emt 0:00:05]} Ke7 {[%emt 0:00:36]} 37. g4 {[%emt 0:03:18]} Bc6 {[%emt 0:00:27]} 38. h4 {[%emt 0:00:22]} Bb5 39. Be4 {[%emt 0:00:19]} Bc4 {[%emt 0:05:18]} 40. h5 {[%emt 0:00:00]} Kf8 {[%emt 0:00:00]} 41. h6 {[%emt 0:00:34]} Kg8 {[%emt 0:01:14]} 42. g5 {[%emt 0:00:28]} Kh8 {[%emt 0:06:38]} 43. g6 {[%emt 0:00:31]} Bb3 {[%emt 0:00:28]} 44. Bd3 {[%emt 0:00:14]} Bd5 {[%emt 0:00:18]} 45. Kg3 {[%emt 0:00:19]} Kg8 {[%emt 0:00:57]} 46. Kg4 {[%emt 0:00:27]} Kh8 {[%emt 0:00:32]} 47. Kg5 {[%emt 0:00:11]} 1-0